fUSD/lending_fUSD_20260202
["ID","MTS","AMOUNT","RATE_DAILY","PERIOD"]
[404352895,1770072639508,-255.0,0.00010152,2]
[404352896,1770072639518,-420.0,0.00010152,2]
[404352897,1770072639528,-420.0,0.00010152,2]
[404352898,1770072639539,-1680.0,0.00010152,2]
[404352899,1770072639548,-250.0,0.00010153,2]
[404352900,1770072639557,-500.0,0.00010153,2]
[404352901,1770072639566,-210.8813549,0.00010153,2]
[404352903,1770072639575,-250.0,0.00010153,2]
[404352904,1770072639585,-193.0,0.00010263,2]
[404352905,1770072639594,-500.0,0.00010263,2]
[404352906,1770072639603,-532.21894192,0.00010363,2]
[404352907,1770072639612,-891.8,0.00010426,2]
[404352908,1770072639621,-500.0,0.00010548,2]
[404352909,1770072639630,-200.0,0.00010548,2]
[404352910,1770072639639,-200.0,0.00010548,2]
[404352911,1770072639648,-322.6107,0.00010678,2]
[404352912,1770072639657,-209.40437684,0.00010678,2]
[404352913,1770072639666,-250.0,0.00010678,2]
[404352914,1770072639675,-578.20924308,0.00010678,2]
[404352915,1770072639684,-250.0,0.00010678,2]
[404352916,1770072639693,-250.0,0.00010678,2]
[404352917,1770072639703,-250.0,0.00010678,2]
[404352918,1770072639712,-250.0,0.00010678,2]
[404352919,1770072639720,-174.61919141,0.00010678,2]
[404352920,1770072639729,-250.0,0.00010678,2]
[404352921,1770072639739,-250.0,0.00010678,2]
[404352922,1770072639748,-250.0,0.00010678,2]
[404352923,1770072639757,-250.0,0.00010678,2]
[404352924,1770072639766,-250.0,0.00010678,2]
[404352925,1770072639775,-250.0,0.00010678,2]
[404352926,1770072639784,-250.0,0.00010678,2]
[404352927,1770072639793,-250.0,0.00010678,2]
[404352928,1770072639802,-151.0,0.00010678,2]
[404352929,1770072639812,-250.0,0.00010678,2]
[404352930,1770072639821,-250.0,0.00010678,2]
[404352931,1770072639830,-721.12765535,0.00010678,2]
[404352932,1770072639839,-500.0,0.00010678,2]
[404352933,1770072639848,-500.0,0.00010678,2]
[404352934,1770072639857,-209.40437684,0.00010678,2]
[404352935,1770072639866,-500.0,0.00010678,2]
[404352936,1770072639876,-500.0,0.00010678,2]
[404352937,1770072639885,-500.0,0.00010678,2]
[404352938,1770072639894,-500.0,0.00010678,2]
[404352939,1770072639905,-284.46263798,0.00010678,2]
[404352940,1770072639914,-500.0,0.00010678,2]
[404352941,1770072639924,-500.0,0.00010678,2]
[404352942,1770072639934,-500.0,0.00010678,2]
[404352943,1770072639943,-500.0,0.00010678,2]
[404352944,1770072639952,-500.0,0.00010678,2]
[404352945,1770072639962,-1428.38747117,0.00010678,2]
[404352946,1770072639971,-891.8,0.000107,2]
[404352947,1770072639981,-340.97,0.00010716,2]
[404352948,1770072639992,-217.15233878,0.00010733,2]
[404352949,1770072640001,-225.18697532,0.00010788,2]
[404352950,1770072640010,-233.51889341,0.00010843,2]
[404352951,1770072640019,-242.15909246,0.00010898,2]
[404352952,1770072640030,-12192.53,0.00010907,2]
[404352953,1770072640039,-500.0,0.00010907,2]
[404352954,1770072640048,-205.32,0.00010918,2]
[404352955,1770072640059,-251.11897888,0.00010953,2]
[404352956,1770072640068,-500.0,0.00010959,2]
[404352957,1770072640078,-166.66,0.00010959,2]
[404352958,1770072640087,-4817.54,0.00010959,2]
[404352959,1770072640096,-165.6164086,0.00010959,2]
[404352960,1770072640106,-891.8,0.00010974,2]
[404352961,1770072640115,-260.4103811,0.00011008,2]
[404352962,1770072640125,-343.33,0.00011036,2]
[404352963,1770072640134,-270.0455652,0.00011063,2]
[404352965,1770072640143,-166.66,0.00011068,2]
[404352966,1770072640153,-500.0,0.00011096,2]
[404352967,1770072640162,-200.0,0.00011096,2]
[404352968,1770072640171,-200.0,0.00011096,2]
[404352969,1770072640180,-76498.21091624,0.00011099,2]
[404352970,1770072640190,-76498.21091616,0.00011099,2]
[404352971,1770072640199,-76498.21091616,0.00011099,2]
[404352972,1770072640207,-76498.21091616,0.00011099,2]
[404352973,1770072640216,-53629.94716634,0.00011099,2]
[404352974,1770072640225,-53629.94716632,0.00011099,2]
[404352975,1770072640235,-53629.94716632,0.00011099,2]
[404352976,1770072640244,-53629.94716632,0.00011099,2]
[404352977,1770072640253,-53629.94716632,0.00011099,2]
[404352978,1770072640261,-53629.94716632,0.00011099,2]
[404352979,1770072640271,-53629.94716632,0.00011099,2]
[404352980,1770072640280,-53629.94716632,0.00011099,2]
[404352981,1770072640289,-53629.94716632,0.00011099,2]
[404352982,1770072640298,-53629.94716632,0.00011099,2]
[404352983,1770072640308,-151.0,0.00011099,2]
[404352984,1770072640317,-151.0,0.00011099,2]
[404352985,1770072640326,-634.026843,0.00011099,2]
[404352986,1770072640335,-151.0,0.00011099,2]
[404352987,1770072640345,-634.026843,0.00011099,2]
[404352988,1770072640354,-151.0,0.00011099,2]
[404352989,1770072640363,-634.026843,0.00011099,2]
[404352990,1770072640372,-151.0,0.00011099,2]
[404352991,1770072640381,-634.026843,0.00011099,2]
[404352992,1770072640390,-2289.027838,0.00011099,2]
[404352993,1770072640398,-2289.027838,0.00011099,2]
[404352994,1770072640407,-2289.027838,0.00011099,2]
[404352995,1770072640416,-2289.027838,0.00011099,2]
[404352996,1770072640425,-280.03725112,0.00011118,2]
[404352997,1770072640434,-433.0,0.00011167,2]
[404352998,1770072640443,-587.0,0.00011167,2]
[404352999,1770072640451,-587.0,0.00011167,2]
[404353000,1770072640461,-2351.0,0.00011167,2]
[404353001,1770072640470,-290.39862941,0.00011173,2]
[404353002,1770072640479,-166.66,0.00011178,2]
[404353003,1770072640488,-217.15233878,0.00011226,2]
[404353004,1770072640497,-181.08010149,0.00011226,2]
[404353005,1770072640507,-151.0,0.00011226,2]
[404353006,1770072640516,-1481.23780761,0.00011226,2]
[404353007,1770072640526,-301.1433787,0.00011228,2]
[404353008,1770072640535,-891.8,0.00011248,2]
[404353010,1770072640545,-341.63207322,0.00011259,2]
[404353011,1770072640554,-166.66,0.00011288,2]
[404353012,1770072640563,-422.36945383,0.00011333,2]
[404353013,1770072640572,-150.0064213,0.0001138,2]
[404353014,1770072640581,-166.66,0.00011397,2]
[404353016,1770072640590,-340.97,0.00011481,2]
[404353018,1770072640599,-166.66,0.00011507,2]
[404353019,1770072640608,-891.8,0.00011522,2]
[404353020,1770072640617,-500.0,0.00011644,2]
[404353021,1770072640626,-200.0,0.00011644,2]
[404353022,1770072640636,-200.0,0.00011644,2]
[404353023,1770072640645,-225.18697532,0.00011774,2]
[404353025,1770072640654,-187.78006525,0.00011774,2]
[404353026,1770072640663,-230.16041742,0.00011774,2]
[404353027,1770072640672,-1536.04360649,0.00011774,2]
[404353028,1770072640680,-891.8,0.00011796,2]
[404353029,1770072640689,-160.29771235,0.00012011,2]
[404353030,1770072640697,-1617.53493796,0.0001202,2]
[404353031,1770072640706,-334.5472959,0.00012047,2]
[404353032,1770072640715,-891.8,0.0001207,2]
[404353033,1770072640724,-500.0,0.00012192,2]
[404353034,1770072640733,-200.0,0.00012192,2]
[404353035,1770072640742,-200.0,0.00012192,2]
[404353036,1770072640751,-250.0,0.00012196,2]
[404353037,1770072640760,-736.0,0.00012284,2]
[404353038,1770072640769,-823.0,0.00012284,2]
[404353039,1770072640778,-823.0,0.00012284,2]
[404353040,1770072640787,-3292.0,0.00012284,2]
[404353041,1770072640796,-233.51889341,0.00012322,2]
[404353042,1770072640805,-194.72792766,0.00012322,2]
[404353043,1770072640814,-1592.87721993,0.00012322,2]
[404353044,1770072640823,-891.8,0.00012344,2]
[404353045,1770072640831,-891.8,0.00012618,2]
[404353046,1770072640840,-500.0,0.0001274,2]
[404353047,1770072640851,-200.0,0.0001274,2]
[404353048,1770072640862,-200.0,0.0001274,2]
[404353049,1770072640872,-150.0064213,0.0001276,2]
[404353050,1770072640881,-242.15909246,0.0001287,2]
[404353051,1770072640892,-201.93286099,0.0001287,2]
[404353052,1770072640901,-1651.81367706,0.0001287,2]
[404353053,1770072640911,-891.8,0.00012892,2]
[404353054,1770072640921,-7805.66,0.00013151,2]
[404353055,1770072640930,-891.8,0.00013166,2]
[404353056,1770072640940,-500.0,0.00013288,2]
[404353057,1770072640950,-200.0,0.00013288,2]
[404353058,1770072640960,-200.0,0.00013288,2]
[404353059,1770072640974,-346.92554585,0.00013416,2]
[404353060,1770072640991,-599.60298507,0.00013417,2]
[404353061,1770072641011,-747.8093786,0.00013417,2]
[404353062,1770072641024,-251.11897888,0.00013418,2]
[404353063,1770072641036,-209.40437684,0.00013418,2]
[404353064,1770072641046,-1712.93078312,0.00013418,2]
[404353065,1770072641060,-891.8,0.0001344,2]
[404353066,1770072641072,-1252.0,0.00013511,2]
[404353067,1770072641084,-549.0,0.00013512,2]
[404353068,1770072641096,-1152.0,0.00013512,2]
[404353069,1770072641108,-4609.0,0.00013512,2]
[404353070,1770072641121,-864.56091313,0.00013552,2]
[404353071,1770072641133,-151.0,0.00013668,2]
[404353072,1770072641145,-2245.23080824,0.0001367,2]
[404353073,1770072641157,-19990.92713855,0.0001367,2]
[404353074,1770072641167,-500.0,0.00013698,2]
[404353075,1770072641178,-272.39317181,0.00013698,2]
[404353076,1770072641191,-500.0,0.00013698,2]
[404353077,1770072641202,-500.0,0.00013698,2]
[404353078,1770072641215,-500.0,0.00013698,2]
[404353079,1770072641226,-500.0,0.00013698,2]
[404353080,1770072641237,-500.0,0.00013698,2]
[404353081,1770072641251,-500.0,0.00013698,2]
[404353082,1770072641262,-500.0,0.00013698,2]
[404353083,1770072641275,-500.0,0.00013698,2]
[404353084,1770072641287,-440.6625364,0.00013698,2]
[404353085,1770072641298,-500.0,0.00013698,2]
[404353086,1770072641311,-500.0,0.00013698,2]
[404353087,1770072641323,-500.0,0.00013698,2]
[404353088,1770072641335,-500.0,0.00013698,2]
[404353089,1770072641347,-500.0,0.00013698,2]
[404353090,1770072641358,-500.0,0.00013698,2]
[404353091,1770072641370,-500.0,0.00013698,2]
[404353092,1770072641381,-500.0,0.00013698,2]
[404353093,1770072641393,-500.0,0.00013698,2]
[404353094,1770072641404,-500.0,0.00013698,2]
[404353095,1770072641418,-500.0,0.00013698,2]
[404353096,1770072641429,-500.0,0.00013698,2]
[404353097,1770072641441,-500.0,0.00013698,2]
[404353098,1770072641452,-500.0,0.00013698,2]
[404353099,1770072641463,-500.0,0.00013698,2]
[404353100,1770072641473,-500.0,0.00013698,2]
[404353101,1770072641483,-500.0,0.00013698,2]
[404353102,1770072641494,-500.0,0.00013698,2]
[404353103,1770072641504,-500.0,0.00013698,2]
[404353104,1770072641518,-500.0,0.00013698,2]
[404353105,1770072641531,-500.0,0.00013698,2]
[404353106,1770072641540,-346.60986891,0.00013698,2]
[404353107,1770072641551,-1540.59,0.00013698,2]
[404353108,1770072641560,-1540.59,0.00013698,2]
[404353109,1770072641570,-1540.59,0.00013698,2]
[404353110,1770072641581,-1540.59,0.00013698,2]
[404353111,1770072641592,-1540.59,0.00013698,2]
[404353112,1770072641604,-1540.59,0.00013698,2]
[404353113,1770072641615,-1540.59,0.00013698,2]
[404353114,1770072641625,-1540.59,0.00013698,2]
[404353115,1770072641635,-1540.59,0.00013698,2]
[404353116,1770072641645,-1540.59,0.00013698,2]
[404353117,1770072641655,-1540.59,0.00013698,2]
[404353118,1770072641666,-1540.59,0.00013698,2]
[404353119,1770072641677,-1540.59,0.00013698,2]
[404353120,1770072641688,-1540.59,0.00013698,2]
[404353121,1770072641698,-1540.59,0.00013698,2]
[404353122,1770072641708,-1540.59,0.00013698,2]
[404353123,1770072641719,-1540.59,0.00013698,2]
[404353124,1770072641730,-1540.59,0.00013698,2]
[404353125,1770072641741,-1540.59,0.00013698,2]
[404353126,1770072641752,-1540.59,0.00013698,2]
[404353127,1770072641763,-1540.59,0.00013698,2]
[404353128,1770072641774,-1540.59,0.00013698,2]
[404353129,1770072641784,-646.39442601,0.00013698,2]
[404353130,1770072641795,-1540.59,0.00013698,2]
[404353131,1770072641808,-1540.72680468,0.00013698,2]
[404353132,1770072641819,-639.93,0.00013698,2]
[404353133,1770072641830,-639.93,0.00013698,2]
[404353134,1770072641841,-639.93,0.00013698,2]
[404353135,1770072641851,-639.93,0.00013698,2]
[404353136,1770072641861,-639.93,0.00013698,2]
[404353137,1770072641872,-639.93,0.00013698,2]
[404353138,1770072641883,-639.93,0.00013698,2]
[404353139,1770072641894,-639.93,0.00013698,2]
[404353140,1770072641904,-639.93,0.00013698,2]
[404353141,1770072641915,-639.93,0.00013698,2]
[404353142,1770072641925,-639.93,0.00013698,2]
[404353143,1770072641936,-639.93,0.00013698,2]
[404353144,1770072641946,-639.93,0.00013698,2]
[404353145,1770072641957,-639.93,0.00013698,2]
[404353146,1770072641968,-639.93,0.00013698,2]
[404353147,1770072641979,-639.93,0.00013698,2]
[404353148,1770072641994,-639.93,0.00013698,2]
[404353149,1770072642005,-639.93,0.00013698,2]
[404353150,1770072642016,-639.93,0.00013698,2]
[404353151,1770072642027,-639.93,0.00013698,2]
[404353152,1770072642038,-639.93,0.00013698,2]
[404353153,1770072642048,-639.93,0.00013698,2]
[404353154,1770072642061,-639.93,0.00013698,2]
[404353155,1770072642071,-640.02279054,0.00013698,2]
[404353156,1770072642082,-596.97,0.00013698,2]
[404353157,1770072642092,-596.97,0.00013698,2]
[404353158,1770072642103,-596.97,0.00013698,2]
[404353159,1770072642114,-596.97,0.00013698,2]
[404353160,1770072642124,-596.97,0.00013698,2]
[404353161,1770072642135,-596.97,0.00013698,2]
[404353162,1770072642145,-596.97,0.00013698,2]
[404353163,1770072642156,-596.97,0.00013698,2]
[404353164,1770072642167,-596.97,0.00013698,2]
[404353165,1770072642177,-596.97,0.00013698,2]
[404353166,1770072642188,-596.97,0.00013698,2]
[404353167,1770072642199,-596.97,0.00013698,2]
[404353168,1770072642210,-596.97,0.00013698,2]
[404353169,1770072642220,-596.97,0.00013698,2]
[404353170,1770072642231,-596.97,0.00013698,2]
[404353171,1770072642242,-596.97,0.00013698,2]
[404353172,1770072642252,-596.97,0.00013698,2]
[404353173,1770072642264,-596.97,0.00013698,2]
[404353174,1770072642275,-596.97,0.00013698,2]
[404353175,1770072642286,-596.97,0.00013698,2]
[404353176,1770072642296,-596.97,0.00013698,2]
[404353177,1770072642307,-596.97,0.00013698,2]
[404353178,1770072642318,-596.97,0.00013698,2]
[404353179,1770072642329,-597.07967228,0.00013698,2]
[404353180,1770072642339,-516.48312948,0.00013698,2]
[404353181,1770072642350,-500.0,0.00013698,2]
[404353182,1770072642361,-500.0,0.00013698,2]
[404353183,1770072642371,-500.0,0.00013698,2]
[404353184,1770072642383,-500.0,0.00013698,2]
[404353185,1770072642393,-500.0,0.00013698,2]
[404353186,1770072642405,-500.0,0.00013698,2]
[404353187,1770072642416,-500.0,0.00013698,2]
[404353188,1770072642427,-339.58910113,0.00013698,2]
[404353189,1770072642438,-500.0,0.00013698,2]
[404353190,1770072642449,-500.0,0.00013698,2]
[404353191,1770072642459,-500.0,0.00013698,2]
[404353192,1770072642471,-500.0,0.00013698,2]
[404353193,1770072642482,-500.0,0.00013698,2]
[404353194,1770072642492,-614.04732503,0.00013698,2]
[404353195,1770072642503,-500.0,0.00013698,2]
[404353196,1770072642513,-500.0,0.00013698,2]
[404353197,1770072642524,-500.0,0.00013698,2]
[404353198,1770072642535,-500.0,0.00013698,2]
[404353199,1770072642546,-500.0,0.00013698,2]
[404353200,1770072642557,-500.0,0.00013698,2]
[404353201,1770072642567,-500.0,0.00013698,2]
[404353202,1770072642580,-500.0,0.00013698,2]
[404353203,1770072642591,-500.0,0.00013698,2]
[404353204,1770072642603,-500.0,0.00013698,2]
[404353205,1770072642615,-500.0,0.00013698,2]
[404353206,1770072642626,-500.0,0.00013698,2]
[404353207,1770072642638,-500.0,0.00013698,2]
[404353208,1770072642650,-500.0,0.00013698,2]
[404353209,1770072642661,-500.0,0.00013698,2]
[404353210,1770072642672,-500.0,0.00013698,2]
[404353211,1770072642684,-500.0,0.00013698,2]
[404353212,1770072642697,-400.99392015,0.00013698,2]
[404353213,1770072642709,-811.57,0.00013698,2]
[404353214,1770072642720,-811.57,0.00013698,2]
[404353215,1770072642731,-811.57,0.00013698,2]
[404353216,1770072642742,-811.57,0.00013698,2]
[404353217,1770072642756,-811.57,0.00013698,2]
[404353218,1770072642767,-811.57,0.00013698,2]
[404353219,1770072642779,-811.57,0.00013698,2]
[404353220,1770072642789,-811.57,0.00013698,2]
[404353221,1770072642801,-811.57,0.00013698,2]
[404353222,1770072642812,-811.57,0.00013698,2]
[404353223,1770072642824,-811.57,0.00013698,2]
[404353224,1770072642837,-811.57,0.00013698,2]
[404353225,1770072642850,-811.57,0.00013698,2]
[404353226,1770072642861,-811.57,0.00013698,2]
[404353227,1770072642872,-811.57,0.00013698,2]
[404353228,1770072642883,-811.57,0.00013698,2]
[404353229,1770072642895,-500.0,0.00013698,2]
[404353230,1770072642909,-811.57,0.00013698,2]
[404353231,1770072642920,-500.0,0.00013698,2]
[404353232,1770072642931,-811.57,0.00013698,2]
[404353233,1770072642943,-500.0,0.00013698,2]
[404353234,1770072642953,-811.57,0.00013698,2]
[404353235,1770072642966,-811.57,0.00013698,2]
[404353236,1770072642978,-500.0,0.00013698,2]
[404353237,1770072642993,-811.57,0.00013698,2]
[404353238,1770072643006,-500.0,0.00013698,2]
[404353239,1770072643018,-811.57,0.00013698,2]
[404353240,1770072643031,-500.0,0.00013698,2]
[404353241,1770072643041,-811.57,0.00013698,2]
[404353242,1770072643053,-500.0,0.00013698,2]
[404353243,1770072643065,-811.60997295,0.00013698,2]
[404353244,1770072643075,-500.0,0.00013698,2]
[404353245,1770072643086,-500.0,0.00013698,2]
[404353246,1770072643097,-500.0,0.00013698,2]
[404353247,1770072643108,-500.0,0.00013698,2]
[404353248,1770072643118,-500.0,0.00013698,2]
[404353249,1770072643129,-500.0,0.00013698,2]
[404353250,1770072643139,-500.0,0.00013698,2]
[404353251,1770072643150,-500.0,0.00013698,2]
[404353252,1770072643160,-500.0,0.00013698,2]
[404353253,1770072643171,-408.83165373,0.00013698,2]
[404353254,1770072643181,-500.0,0.00013698,2]
[404353255,1770072643192,-500.0,0.00013698,2]
[404353256,1770072643203,-500.0,0.00013698,2]
[404353257,1770072643214,-500.0,0.00013698,2]
[404353258,1770072643224,-500.0,0.00013698,2]
[404353259,1770072643234,-500.0,0.00013698,2]
[404353260,1770072643245,-500.0,0.00013698,2]
[404353261,1770072643255,-500.0,0.00013698,2]
[404353262,1770072643266,-500.0,0.00013698,2]
[404353263,1770072643277,-500.0,0.00013698,2]
[404353264,1770072643287,-500.0,0.00013698,2]
[404353265,1770072643299,-500.0,0.00013698,2]
[404353266,1770072643310,-500.0,0.00013698,2]
[404353267,1770072643321,-500.0,0.00013698,2]
[404353268,1770072643332,-500.0,0.00013698,2]
[404353269,1770072643343,-500.0,0.00013698,2]
[404353270,1770072643636,-500.0,0.00013698,2]
[404353271,1770072643658,-500.0,0.00013698,2]
[404353272,1770072643670,-500.0,0.00013698,2]
[404353273,1770072643680,-500.0,0.00013698,2]
[404353274,1770072643689,-500.0,0.00013698,2]
[404353275,1770072643698,-500.0,0.00013698,2]
[404353276,1770072643707,-224.99954883,0.00013698,2]
[404353277,1770072643717,-700.51,0.00013698,2]
[404353278,1770072643725,-700.51,0.00013698,2]
[404353279,1770072643735,-700.51,0.00013698,2]
[404353280,1770072643744,-700.51,0.00013698,2]
[404353281,1770072643753,-700.51,0.00013698,2]
[404353282,1770072643762,-700.51,0.00013698,2]
[404353283,1770072643773,-700.51,0.00013698,2]
[404353284,1770072643783,-700.51,0.00013698,2]
[404353285,1770072643792,-700.51,0.00013698,2]
[404353286,1770072643802,-700.51,0.00013698,2]
[404353287,1770072643812,-700.51,0.00013698,2]
[404353288,1770072643822,-700.51,0.00013698,2]
[404353289,1770072643833,-700.51,0.00013698,2]
[404353290,1770072643842,-700.51,0.00013698,2]
[404353291,1770072643851,-700.51,0.00013698,2]
[404353292,1770072643859,-700.51,0.00013698,2]
[404353293,1770072643868,-700.51,0.00013698,2]
[404353294,1770072643877,-700.51,0.00013698,2]
[404353295,1770072643886,-700.51,0.00013698,2]
[404353297,1770072643895,-700.51,0.00013698,2]
[404353299,1770072643903,-700.51,0.00013698,2]
[404353301,1770072643912,-700.51,0.00013698,2]
[404353303,1770072643921,-700.51,0.00013698,2]
[404353305,1770072643930,-700.52484432,0.00013698,2]
[404353307,1770072643939,-554.70150285,0.00013698,2]
[404353309,1770072643948,-500.0,0.00013698,2]
[404353311,1770072643957,-500.0,0.00013698,2]
[404353313,1770072643966,-500.0,0.00013698,2]
[404353315,1770072643975,-500.0,0.00013698,2]
[404353317,1770072643989,-500.0,0.00013698,2]
[404353319,1770072643998,-500.0,0.00013698,2]
[404353320,1770072644007,-500.0,0.00013698,2]
[404353322,1770072644016,-500.0,0.00013698,2]
[404353324,1770072644027,-500.0,0.00013698,2]
[404353325,1770072644035,-500.0,0.00013698,2]
[404353326,1770072644044,-500.0,0.00013698,2]
[404353327,1770072644055,-500.0,0.00013698,2]
[404353328,1770072644063,-500.0,0.00013698,2]
[404353329,1770072644072,-500.0,0.00013698,2]
[404353330,1770072644081,-500.0,0.00013698,2]
[404353331,1770072644090,-324.98118221,0.00013698,2]
[404353332,1770072644100,-500.0,0.00013698,2]
[404353333,1770072644109,-500.0,0.00013698,2]
[404353334,1770072644119,-500.0,0.00013698,2]
[404353335,1770072644128,-500.0,0.00013698,2]
[404353336,1770072644137,-500.0,0.00013698,2]
[404353337,1770072644146,-500.0,0.00013698,2]
[404353338,1770072644156,-613.19482535,0.00013698,2]
[404353339,1770072644165,-520.9392261,0.00013698,2]
[404353340,1770072644174,-1675.29,0.00013698,2]
[404353341,1770072644183,-1675.29,0.00013698,2]
[404353342,1770072644192,-1675.29,0.00013698,2]
[404353343,1770072644201,-1675.29,0.00013698,2]
[404353344,1770072644211,-1675.29,0.00013698,2]
[404353345,1770072644220,-1675.29,0.00013698,2]
[404353346,1770072644229,-1675.29,0.00013698,2]
[404353347,1770072644238,-1675.29,0.00013698,2]
[404353348,1770072644247,-1675.29,0.00013698,2]
[404353349,1770072644257,-1675.29,0.00013698,2]
[404353350,1770072644266,-1675.29,0.00013698,2]
[404353351,1770072644275,-1675.29,0.00013698,2]
[404353352,1770072644284,-1675.29,0.00013698,2]
[404353353,1770072644293,-1675.29,0.00013698,2]
[404353354,1770072644302,-1675.29,0.00013698,2]
[404353355,1770072644312,-1675.29,0.00013698,2]
[404353356,1770072644321,-1675.29,0.00013698,2]
[404353357,1770072644330,-1675.29,0.00013698,2]
[404353358,1770072644339,-1675.29,0.00013698,2]
[404353359,1770072644348,-1675.29,0.00013698,2]
[404353360,1770072644357,-1675.29,0.00013698,2]
[404353361,1770072644366,-1675.29,0.00013698,2]
[404353362,1770072644375,-1675.29,0.00013698,2]
[404353363,1770072644383,-1675.46797138,0.00013698,2]
[404353364,1770072644392,-635.64,0.00013698,2]
[404353365,1770072644402,-635.64,0.00013698,2]
[404353366,1770072644411,-635.64,0.00013698,2]
[404353367,1770072644419,-635.64,0.00013698,2]
[404353368,1770072644428,-635.64,0.00013698,2]
[404353369,1770072644438,-635.64,0.00013698,2]
[404353370,1770072644447,-635.64,0.00013698,2]
[404353371,1770072644456,-635.64,0.00013698,2]
[404353372,1770072644465,-635.64,0.00013698,2]
[404353373,1770072644474,-635.64,0.00013698,2]
[404353374,1770072644483,-635.64,0.00013698,2]
[404353375,1770072644492,-635.64,0.00013698,2]
[404353376,1770072644501,-635.64,0.00013698,2]
[404353377,1770072644510,-635.64,0.00013698,2]
[404353378,1770072644519,-635.64,0.00013698,2]
[404353379,1770072644527,-635.64,0.00013698,2]
[404353380,1770072644536,-635.64,0.00013698,2]
[404353381,1770072644546,-635.64,0.00013698,2]
[404353382,1770072644555,-635.64,0.00013698,2]
[404353383,1770072644564,-635.64,0.00013698,2]
[404353384,1770072644573,-635.64,0.00013698,2]
[404353385,1770072644583,-635.64,0.00013698,2]
[404353386,1770072644592,-635.64,0.00013698,2]
[404353387,1770072644601,-635.83897736,0.00013698,2]
[404353388,1770072644611,-500.0,0.00013698,2]
[404353389,1770072644620,-500.0,0.00013698,2]
[404353390,1770072644628,-500.0,0.00013698,2]
[404353391,1770072644637,-500.0,0.00013698,2]
[404353392,1770072644646,-500.0,0.00013698,2]
[404353393,1770072644655,-500.0,0.00013698,2]
[404353394,1770072644664,-500.0,0.00013698,2]
[404353395,1770072644672,-500.0,0.00013698,2]
[404353396,1770072644681,-345.2209737,0.00013698,2]
[404353397,1770072644691,-500.0,0.00013698,2]
[404353398,1770072644700,-500.0,0.00013698,2]
[404353399,1770072644709,-500.0,0.00013698,2]
[404353400,1770072644718,-500.0,0.00013698,2]
[404353401,1770072644727,-500.0,0.00013698,2]
[404353402,1770072644735,-500.0,0.00013698,2]
[404353403,1770072644744,-500.0,0.00013698,2]
[404353404,1770072644756,-500.0,0.00013698,2]
[404353405,1770072644765,-500.0,0.00013698,2]
[404353406,1770072644775,-500.0,0.00013698,2]
[404353407,1770072644784,-239.79549484,0.00013698,2]
[404353408,1770072644793,-500.0,0.00013698,2]
[404353409,1770072644802,-500.0,0.00013698,2]
[404353410,1770072644811,-846.12,0.00013698,2]
[404353411,1770072644820,-500.0,0.00013698,2]
[404353412,1770072644829,-846.12,0.00013698,2]
[404353413,1770072644838,-500.0,0.00013698,2]
[404353414,1770072644846,-846.12,0.00013698,2]